[Event "Senior Men Russian Championship 2022_1L"]
[Site "Olginka, Russia"]
[Date "2022.10.02"]
[Round "9.3"]
[White "Piankov, Evgenij"]
[Black "Dmitriev, Igor"]
[Result "1-0"]
[TimeControl "90min/40moves+30min/end+30sec increment per move starting from move 1"]
[WhiteTitle "IM"]
[BlackTitle "IM"]
[WhiteFideId "14100525"]
[BlackFideId "4114833"]
[WhiteElo "2165"]
[BlackElo "2174"]

1. d4 {[%clk 01:30:56]} {[%emt 00:00:02]} a6 {[%clk 01:27:16]} {[%emt
00:03:45]} 2. g3 {[%clk 01:30:36]} {[%emt 00:00:50]} d5 {[%clk 01:27:34]}
{[%emt 00:00:12]} 3. Bg2 {[%clk 01:30:49]} {[%emt 00:00:16]} Nc6 {[%clk
01:27:52]} {[%emt 00:00:12]} 4. Nf3 {[%clk 01:31:02]} {[%emt 00:00:16]} Bg4
{[%clk 01:28:01]} {[%emt 00:00:22]} 5. O-O {[%clk 01:27:19]} {[%emt 00:04:13]}
e6 {[%clk 01:27:59]} {[%emt 00:00:32]} 6. b3 {[%clk 01:26:27]} {[%emt
00:01:22]} Nf6 {[%clk 01:25:34]} {[%emt 00:02:55]} 7. Bb2 {[%clk 01:26:46]}
{[%emt 00:00:12]} Be7 {[%clk 01:24:46]} {[%emt 00:01:17]} 8. c4 {[%clk
01:26:49]} {[%emt 00:00:27]} O-O {[%clk 01:22:35]} {[%emt 00:02:41]} 9. Ne5
{[%clk 01:17:26]} {[%emt 00:09:53]} Bf5 {[%clk 01:13:34]} {[%emt 00:09:31]} 10.
cxd5 {[%clk 01:15:11]} {[%emt 00:02:44]} exd5 {[%clk 01:13:27]} {[%emt
00:00:37]} 11. Nxc6 {[%clk 01:15:25]} {[%emt 00:00:17]} bxc6 {[%clk 01:13:49]}
{[%emt 00:00:08]} 12. Nc3 {[%clk 01:15:40]} {[%emt 00:00:14]} Re8 {[%clk
01:12:24]} {[%emt 00:01:55]} 13. e3 {[%clk 01:14:24]} {[%emt 00:01:46]} Bd6
{[%clk 01:12:16]} {[%emt 00:00:38]} 14. Rc1 {[%clk 01:14:36]} {[%emt 00:00:18]}
Qd7 {[%clk 01:11:50]} {[%emt 00:00:57]} 15. Qd2 {[%clk 00:59:12]} {[%emt
00:15:53]} h5 {[%clk 01:06:45]} {[%emt 00:05:34]} 16. Ne2 {[%clk 00:56:00]}
{[%emt 00:03:42]} a5 {[%clk 01:01:46]} {[%emt 00:05:30]} 17. Nc3 {[%clk
00:47:02]} {[%emt 00:09:29]} h4 {[%clk 01:00:36]} {[%emt 00:01:39]} 18. Na4
{[%clk 00:45:07]} {[%emt 00:02:25]} Ne4 {[%clk 00:51:33]} {[%emt 00:09:32]} 19.
Qe2 {[%clk 00:44:41]} {[%emt 00:00:57]} hxg3 {[%clk 00:50:24]} {[%emt
00:01:40]} 20. hxg3 {[%clk 00:43:25]} {[%emt 00:01:46]} Bh3 {[%clk 00:47:23]}
{[%emt 00:03:31]} 21. Nc5 {[%clk 00:36:23]} {[%emt 00:07:33]} Bxc5 {[%clk
00:45:05]} {[%emt 00:02:48]} 22. dxc5 {[%clk 00:36:51]} {[%emt 00:00:02]} Qf5
{[%clk 00:44:49]} {[%emt 00:00:45]} 23. Rfd1 {[%clk 00:30:33]} {[%emt
00:06:48]} Bxg2 {[%clk 00:42:58]} {[%emt 00:02:21]} 24. Kxg2 {[%clk 00:31:01]}
{[%emt 00:00:02]} a4 {[%clk 00:40:54]} {[%emt 00:02:35]} 25. b4 {[%clk
00:30:04]} {[%emt 00:01:27]} Ng5 {[%clk 00:39:21]} {[%emt 00:02:01]} 26. Qh5
{[%clk 00:22:23]} {[%emt 00:08:12]} f6 {[%clk 00:31:47]} {[%emt 00:08:04]} 27.
Rd4 {[%clk 00:19:55]} {[%emt 00:02:59]} a3 {[%clk 00:29:48]} {[%emt 00:02:30]}
28. Bc3 {[%clk 00:18:50]} {[%emt 00:01:34]} Qh7 {[%clk 00:25:47]} {[%emt
00:04:30]} 29. Qxh7+ {[%clk 00:17:28]} {[%emt 00:01:53]} Kxh7 {[%clk 00:26:09]}
{[%emt 00:00:08]} 30. Rd3 {[%clk 00:16:46]} {[%emt 00:01:12]} Reb8 {[%clk
00:24:40]} {[%emt 00:01:59]} 31. f3 {[%clk 00:16:48]} {[%emt 00:00:28]} Kg6
{[%clk 00:23:13]} {[%emt 00:01:56]} 32. Bd2 {[%clk 00:16:11]} {[%emt 00:01:08]}
Nf7 {[%clk 00:17:31]} {[%emt 00:06:12]} 33. Rd4 {[%clk 00:12:58]} {[%emt
00:03:42]} Ne5 {[%clk 00:16:14]} {[%emt 00:01:48]} 34. Bc3 {[%clk 00:10:52]}
{[%emt 00:02:36]} Nc4 {[%clk 00:16:17]} {[%emt 00:00:26]} 35. e4 {[%clk
00:09:29]} {[%emt 00:01:54]} Re8 {[%clk 00:14:44]} {[%emt 00:02:03]} 36. Re1
{[%clk 00:09:02]} {[%emt 00:00:57]} Rad8 {[%clk 00:14:20]} {[%emt 00:00:54]} 37.
Kf2 {[%clk 00:08:55]} {[%emt 00:00:37]} Rh8 {[%clk 00:14:21]} {[%emt 00:00:30]}
38. Kg2 {[%clk 00:08:45]} {[%emt 00:00:39]} Rh5 {[%clk 00:12:14]} {[%emt
00:02:37]} 39. Rh1 {[%clk 00:06:38]} {[%emt 00:02:37]} Ne3+ {[%clk 00:12:31]}
{[%emt 00:00:13]} 40. Kg1 {[%clk 00:37:07]} {[%emt 00:00:02]} Rxh1+ {[%clk
00:42:36]} {[%emt 00:00:25]} 41. Kxh1 {[%clk 00:37:32]} {[%emt 00:00:05]} Rh8+
{[%clk 00:42:50]} {[%emt 00:00:16]} 42. Kg1 {[%clk 00:37:46]} {[%emt 00:00:15]}
dxe4 {[%clk 00:43:10]} {[%emt 00:00:11]} 43. Rxe4 {[%clk 00:37:36]} {[%emt
00:00:41]} Nd5 {[%clk 00:43:30]} {[%emt 00:00:10]} 44. Bd2 {[%clk 00:37:33]}
{[%emt 00:00:33]} Kf7 {[%clk 00:43:51]} {[%emt 00:00:09]} 45. Rd4 {[%clk
00:37:13]} {[%emt 00:00:50]} Rb8 {[%clk 00:43:11]} {[%emt 00:01:10]} 46. Kf2
{[%clk 00:36:36]} {[%emt 00:01:07]} f5 {[%clk 00:43:03]} {[%emt 00:00:38]} 47.
Ke2 {[%clk 00:36:09]} {[%emt 00:00:57]} Ke6 {[%clk 00:41:39]} {[%emt 00:01:53]}
48. Kd3 {[%clk 00:36:04]} {[%emt 00:00:34]} Rh8 {[%clk 00:33:12]} {[%emt
00:08:57]} 49. Rh4 {[%clk 00:35:56]} {[%emt 00:00:39]} Rxh4 {[%clk 00:30:32]}
{[%emt 00:03:10]} 50. gxh4 {[%clk 00:36:17]} {[%emt 00:00:07]} Ke5 {[%clk
00:30:24]} {[%emt 00:00:39]} 51. Kc4 {[%clk 00:36:32]} {[%emt 00:00:15]} g6
{[%clk 00:30:03]} {[%emt 00:00:50]} 52. Bc1 {[%clk 00:35:15]} {[%emt 00:01:46]}
Ne7 {[%clk 00:23:42]} {[%emt 00:06:52]} 53. Kd3 {[%clk 00:29:27]} {[%emt
00:06:18]} Nd5 {[%clk 00:23:30]} {[%emt 00:00:43]} 54. Kc4 {[%clk 00:28:10]}
{[%emt 00:01:47]} Ne7 {[%clk 00:23:51]} {[%emt 00:00:09]} 55. Bxa3 {[%clk
00:27:56]} {[%emt 00:00:44]} Kf4 {[%clk 00:24:13]} {[%emt 00:00:07]} 56. Bc1
{[%clk 00:28:06]} {[%emt 00:00:20]} Kxf3 {[%clk 00:24:31]} {[%emt 00:00:13]} 57.
Bg5 {[%clk 00:28:27]} {[%emt 00:00:09]} Nc8 {[%clk 00:24:24]} {[%emt 00:00:37]}
58. Kd4 {[%clk 00:28:02]} {[%emt 00:00:54]} Kg4 {[%clk 00:17:10]} {[%emt
00:07:45]} 59. Ke5 {[%clk 00:28:10]} {[%emt 00:00:20]} f4 {[%clk 00:17:30]}
{[%emt 00:00:11]} 60. Bxf4 {[%clk 00:28:25]} {[%emt 00:00:16]} Kxh4 {[%clk
00:17:52]} {[%emt 00:00:08]} 61. Ke6 {[%clk 00:28:33]} {[%emt 00:00:21]} g5
{[%clk 00:17:53]} {[%emt 00:00:30]} 62. Bxc7 {[%clk 00:28:50]} {[%emt
00:00:13]} g4 {[%clk 00:18:17]} {[%emt 00:00:06]} 63. a4 {[%clk 00:28:48]}
{[%emt 00:00:32]} g3 {[%clk 00:18:38]} {[%emt 00:00:09]} 64. Kd7 {[%clk
00:28:55]} {[%emt 00:00:23]} Na7 {[%clk 00:19:02]} {[%emt 00:00:07]} 65. Bxg3+
{[%clk 00:29:11]} {[%emt 00:00:14]} Kxg3 {[%clk 00:19:23]} {[%emt 00:00:08]} 66.
Kc7 {[%clk 00:29:35]} {[%emt 00:00:06]} 1-0

[Event "Senior Men Russian Championship 2022_1L"]
[Site "Olginka, Russia"]
[Date "2022.10.02"]
[Round "9.6"]
[White "Pak, Kil En"]
[Black "Bebchuk, Boris"]
[Result "1-0"]
[TimeControl "90min/40moves+30min/end+30sec increment per move starting from move 1"]
[WhiteFideId "4131959"]
[WhiteElo "2207"]
[BlackElo "2089"]

1. e4 {[%clk 01:30:55]} {[%emt 00:00:04]} c5 {[%clk 01:28:39]} {[%emt
00:02:20]} 2. Nf3 {[%clk 01:30:39]} {[%emt 00:00:48]} d6 {[%clk 01:28:57]}
{[%emt 00:00:12]} 3. d4 {[%clk 01:30:40]} {[%emt 00:00:30]} cxd4 {[%clk
01:29:17]} {[%emt 00:00:10]} 4. Nxd4 {[%clk 01:31:03]} {[%emt 00:00:08]} Nf6
{[%clk 01:29:44]} {[%emt 00:00:02]} 5. Nc3 {[%clk 01:31:25]} {[%emt 00:00:08]}
a6 {[%clk 01:30:06]} {[%emt 00:00:08]} 6. f3 {[%clk 01:31:48]} {[%emt
00:00:07]} e6 {[%clk 01:29:47]} {[%emt 00:00:48]} 7. Be3 {[%clk 01:32:08]}
{[%emt 00:00:10]} Qc7 {[%clk 01:26:48]} {[%emt 00:03:29]} 8. Qd2 {[%clk
01:31:23]} {[%emt 00:01:15]} Bd7 {[%clk 01:25:06]} {[%emt 00:02:12]} 9. g4
{[%clk 01:31:34]} {[%emt 00:00:20]} h6 {[%clk 01:25:23]} {[%emt 00:00:13]} 10.
O-O-O {[%clk 01:31:43]} {[%emt 00:00:20]} Nc6 {[%clk 01:25:45]} {[%emt
00:00:08]} 11. h4 {[%clk 01:31:52]} {[%emt 00:00:21]} O-O-O {[%clk 01:25:02]}
{[%emt 00:01:13]} 12. Rg1 {[%clk 01:19:27]} {[%emt 00:12:53]} g6 {[%clk
01:20:54]} {[%emt 00:04:39]} 13. Nb3 {[%clk 01:14:48]} {[%emt 00:05:10]} Ne5
{[%clk 01:20:31]} {[%emt 00:00:52]} 14. Qf2 {[%clk 01:14:36]} {[%emt 00:00:41]}
Nc4 {[%clk 01:16:40]} {[%emt 00:04:21]} 15. Bxc4 {[%clk 01:13:24]} {[%emt
00:01:43]} Qxc4 {[%clk 01:17:08]} {[%emt 00:00:02]} 16. Bb6 {[%clk 01:12:25]}
{[%emt 00:01:28]} d5 {[%clk 01:15:33]} {[%emt 00:02:06]} 17. Na5 {[%clk
01:07:07]} {[%emt 00:05:45]} Qb4 {[%clk 01:15:08]} {[%emt 00:00:57]} 18. a3
{[%clk 01:06:11]} {[%emt 00:01:26]} Qe7 {[%clk 01:15:00]} {[%emt 00:00:37]} 19.
g5 {[%clk 01:03:45]} {[%emt 00:02:57]} hxg5 {[%clk 01:14:16]} {[%emt 00:01:14]}
20. hxg5 {[%clk 01:03:47]} {[%emt 00:00:27]} Nh7 {[%clk 01:14:45]} 21. exd5
{[%clk 01:03:19]} {[%emt 00:01:00]} Bg7 {[%clk 01:10:52]} {[%emt 00:04:22]} 22.
d6 {[%clk 01:02:56]} {[%emt 00:00:54]} Qe8 {[%clk 01:10:56]} {[%emt 00:00:25]}
23. Qc5+ {[%clk 00:59:30]} {[%emt 00:03:55]} Bc6 {[%clk 01:10:20]} {[%emt
00:01:08]} 24. Bxd8 {[%clk 00:58:31]} {[%emt 00:01:29]} Bxc3 {[%clk 01:05:22]}
{[%emt 00:05:27]} 25. bxc3 {[%clk 00:57:11]} {[%emt 00:01:51]} Kxd8 {[%clk
01:05:27]} {[%emt 00:00:25]} 26. Qb6+ {[%clk 00:54:10]} {[%emt 00:03:32]} 1-0

[Event "Senior Men Russian Championship 2022_1L"]
[Site "Olginka, Russia"]
[Date "2022.10.02"]
[Round "9.8"]
[White "Sluzhilov, Aleksandr"]
[Black "Nelyubin, Sergey"]
[Result "1-0"]
[TimeControl "90min/40moves+30min/end+30sec increment per move starting from move 1"]
[WhiteFideId "24152501"]
[BlackFideId "14110490"]
[WhiteElo "1795"]
[BlackElo "1987"]

1. Nf3 {[%clk 01:30:58]} Nf6 {[%clk 01:30:45]} {[%emt 00:00:16]} 2. e3 {[%clk
01:31:09]} {[%emt 00:00:19]} g6 {[%clk 01:30:50]} {[%emt 00:00:24]} 3. b3
{[%clk 01:31:27]} {[%emt 00:00:13]} Bg7 {[%clk 01:30:49]} {[%emt 00:00:32]} 4.
Bb2 {[%clk 01:31:54]} {[%emt 00:00:02]} O-O {[%clk 01:30:54]} {[%emt 00:00:24]}
5. d4 {[%clk 01:29:31]} {[%emt 00:02:53]} d6 {[%clk 01:28:10]} {[%emt
00:03:15]} 6. Nbd2 {[%clk 01:29:38]} {[%emt 00:00:23]} Bf5 {[%clk 01:24:50]}
{[%emt 00:03:50]} 7. Be2 {[%clk 01:27:17]} {[%emt 00:02:52]} a5 {[%clk
01:22:05]} {[%emt 00:03:16]} 8. O-O {[%clk 01:27:22]} {[%emt 00:00:25]} Ne4
{[%clk 01:20:31]} {[%emt 00:02:04]} 9. Nxe4 {[%clk 01:21:14]} {[%emt 00:06:38]}
Bxe4 {[%clk 01:20:52]} {[%emt 00:00:09]} 10. Ng5 {[%clk 01:16:56]} {[%emt
00:04:47]} Bc6 {[%clk 01:19:28]} {[%emt 00:01:54]} 11. f4 {[%clk 01:11:05]}
{[%emt 00:06:22]} h6 {[%clk 01:12:54]} {[%emt 00:07:04]} 12. Nf3 {[%clk
01:11:18]} {[%emt 00:00:16]} Bd7 {[%clk 01:10:59]} {[%emt 00:02:25]} 13. e4
{[%clk 01:09:12]} {[%emt 00:02:37]} e6 {[%clk 01:07:14]} {[%emt 00:04:15]} 14.
Qe1 {[%clk 01:03:29]} {[%emt 00:06:12]} c5 {[%clk 01:04:25]} {[%emt 00:03:20]}
15. c3 {[%clk 01:02:36]} {[%emt 00:01:22]} a4 {[%clk 01:02:20]} {[%emt
00:02:36]} 16. Rb1 {[%clk 00:51:12]} {[%emt 00:11:55]} axb3 {[%clk 01:01:47]}
{[%emt 00:01:03]} 17. axb3 {[%clk 00:51:39]} {[%emt 00:00:02]} Ra2 {[%clk
01:00:39]} {[%emt 00:01:38]} 18. b4 {[%clk 00:49:02]} {[%emt 00:03:07]} cxb4
{[%clk 00:56:04]} {[%emt 00:05:04]} 19. Bc4 {[%clk 00:48:45]} {[%emt 00:00:47]}
Ra4 {[%clk 00:53:13]} {[%emt 00:03:20]} 20. Bb3 {[%clk 00:49:03]} {[%emt
00:00:15]} Ra8 {[%clk 00:52:17]} {[%emt 00:01:25]} 21. cxb4 {[%clk 00:49:22]}
{[%emt 00:00:11]} Qb6 {[%clk 00:51:29]} {[%emt 00:01:17]} 22. Bc3 {[%clk
00:40:00]} {[%emt 00:09:53]} Bb5 {[%clk 00:50:39]} {[%emt 00:01:20]} 23. Rf2
{[%clk 00:40:17]} {[%emt 00:00:13]} Rc8 {[%clk 00:49:25]} {[%emt 00:01:44]} 24.
f5 {[%clk 00:29:21]} {[%emt 00:11:27]} exf5 {[%clk 00:30:14]} {[%emt 00:19:42]}
25. exf5 {[%clk 00:29:48]} {[%emt 00:00:02]} Re8 {[%clk 00:28:11]} {[%emt
00:02:32]} 26. Qd2 {[%clk 00:27:15]} {[%emt 00:03:05]} g5 {[%clk 00:23:52]}
{[%emt 00:04:49]} 27. Nxg5 {[%clk 00:25:54]} {[%emt 00:01:51]} hxg5 {[%clk
00:22:40]} {[%emt 00:01:42]} 28. Qxg5 {[%clk 00:26:21]} {[%emt 00:00:03]} Kh7
{[%clk 00:17:09]} {[%emt 00:06:02]} 29. f6 {[%clk 00:25:58]} {[%emt 00:00:53]}
1-0